bitfinex-derivatives/quotes_ETHF0:USTF0_20241207
["timestamp","ask_amount","ask_price","bid_price","bid_amount"]
[1733539903348,0.17505,3992.7,3992.6,0.5151]
[1733539903539,3.714,3993.1,3992.6,0.5151]
[1733539903941,0.17504,3992.9,3992.6,0.5151]
[1733539904743,0.17504,3992.8,3992.6,0.5151]
[1733539905337,0.17503,3993.0,3992.6,0.69015]
[1733539905742,1.95183302,3993.2,3992.6,0.5151]
[1733539905950,0.17504,3992.9,3992.6,0.5151]
[1733539906341,1.95183302,3993.2,3992.6,0.5151]
[1733539906550,0.5062,3993.6,3992.6,0.5151]
[1733539906551,1.95183302,3993.6,3992.7,3.2078]
[1733539906950,0.17501,3993.5,3993.2,0.17502]
[1733539907244,1.95183302,3993.6,3993.3,0.5419]
[1733539907548,0.17501,3993.4,3993.3,0.5419]
[1733539908356,1.95183302,3993.6,3993.3,0.5419]
[1733539908648,2.12684302,3993.6,3993.4,0.4905]
[1733539908957,0.17501,3993.5,3993.4,0.4905]
[1733539909149,2.12683302,3993.6,3993.4,0.4905]
[1733539909552,0.175,3993.6,3993.4,0.66551]
[1733539910652,0.175,3993.6,3993.4,0.4905]
[1733539911355,0.17501,3993.6,3993.4,0.4905]
[1733539911750,0.17501,3993.6,3993.4,0.66551]
[1733539912045,1.95183302,3994.0,3993.4,0.4905]
[1733539912243,0.17501,3993.5,3993.4,0.4905]
[1733539912861,1.95183302,3994.0,3993.4,0.4905]
[1733539913050,1.95183302,3994.0,3993.5,0.17501]
[1733539913249,0.175,3993.8,3993.5,0.17501]
[1733539913649,0.175,3993.7,3993.5,0.17501]
[1733539914358,1.95183302,3994.0,3993.4,0.4905]
[1733539914754,0.175,3993.6,3993.4,0.66551]
[1733539915951,0.175,3993.7,3993.5,0.17501]
[1733539916152,0.175,3993.7,3993.4,0.4905]
[1733539916153,0.175,3993.7,3993.4,0.66551]
[1733539916353,0.17501,3993.6,3993.4,0.66551]
[1733539916960,0.175,3993.8,3993.5,0.17501]
[1733539917159,0.175,3993.8,3993.4,0.4905]
[1733539917464,0.17499,3993.9,3993.6,0.175]
[1733539917753,1.95183302,3994.0,3993.4,0.4905]
[1733539917952,3.2078,3994.3,3993.5,3.2078]
[1733539918156,0.17499,3994.0,3993.7,0.175]
[1733539918358,0.17499,3994.0,3993.8,0.17499]
[1733539919158,3.2078,3994.3,3993.5,3.2078]
[1733539919459,0.17499,3994.1,3993.5,3.2078]
[1733539919760,0.17499,3994.1,3993.9,0.17499]
[1733539920052,0.17499,3994.1,3994.0,0.5197]
[1733539920259,0.17498,3994.2,3994.0,1.18948]
[1733539920863,0.17498,3994.1,3994.0,1.0145]
[1733539922861,0.17498,3994.2,3994.0,1.0145]
[1733539923256,5.15963302,3994.4,3994.0,1.0145]
[1733539923561,0.17498,3994.1,3994.0,1.0145]
[1733539923959,5.15963302,3994.4,3994.0,1.0145]
[1733539923960,0.17498,3994.2,3994.0,1.0145]
[1733539924155,0.17498,3994.2,3994.1,0.5385]
[1733539924554,0.17498,3994.3,3994.1,0.5385]
[1733539924859,0.17498,3994.2,3994.1,0.5385]
[1733539925066,1.95183302,3994.4,3994.1,0.5385]
[1733539925256,0.17498,3994.2,3994.1,0.5385]
[1733539925456,1.95183302,3994.4,3994.1,0.5385]
[1733539925457,0.17497,3994.3,3994.1,0.5385]
[1733539925658,1.95183302,3994.4,3994.1,0.5385]
[1733539925853,0.17498,3994.2,3994.1,0.5385]
[1733539926264,0.17499,3994.1,3993.7,0.175]
[1733539926469,0.17497,3994.3,3994.0,0.66559]
[1733539926664,5.15963302,3994.4,3994.1,0.17498]
[1733539926860,5.33460302,3994.4,3994.1,0.17498]
[1733539927161,0.17497,3994.3,3994.2,0.4905]
[1733539930274,5.33460302,3994.4,3994.2,0.4905]
[1733539930478,5.15963302,3994.4,3994.2,0.4905]
[1733539930771,0.17497,3994.3,3994.2,0.4905]
[1733539931172,0.5321,3994.7,3994.2,0.4905]
[1733539931375,0.17497,3994.5,3994.3,0.5233]
[1733539931775,0.17497,3994.4,3994.3,0.5233]
[1733539931975,0.5321,3994.7,3994.3,0.5233]
[1733539932270,0.17497,3994.5,3994.3,0.5233]
[1733539932473,0.17497,3994.4,3994.3,0.5233]
[1733539932674,0.17497,3994.5,3994.3,0.5233]
[1733539933071,0.17497,3994.4,3994.3,0.5233]
[1733539933772,0.17497,3994.5,3994.3,0.5233]
[1733539934365,1.95183302,3994.6,3994.3,0.5233]
[1733539934571,0.17497,3994.4,3994.3,0.5233]
[1733539935767,0.17497,3994.5,3994.3,0.5233]
[1733539936381,3.91514149,3995.9,3994.7,0.4374]
[1733539936679,0.9009422,3995.7,3995.3,0.17493]
[1733539936882,1.0758622,3995.7,3995.0,0.17494]
[1733539937174,0.9009422,3995.7,3995.4,5.88192686]
[1733539937372,0.9009422,3995.7,3995.4,6.05684686]
[1733539937569,0.9009422,3995.7,3995.4,5.88192686]
[1733539937774,0.9009422,3995.7,3995.5,6.05684686]
[1733539938081,0.9009422,3995.7,3995.6,0.4941]
[1733539938273,0.5213,3996.0,3995.6,6.55032366]
[1733539938469,1.4222422,3996.0,3995.7,5.88118324]
[1733539938674,1.4222422,3996.0,3995.6,0.4941]
[1733539938675,0.6962,3996.0,3995.8,5.88118324]
[1733539938878,0.5213,3996.0,3995.8,5.88118324]
[1733539939074,0.6962,3996.0,3995.8,5.88118324]
[1733539939278,0.6962,3996.0,3995.7,6.05609324]
[1733539940181,0.6962,3996.0,3995.7,0.17491]
[1733539940681,0.5213,3996.0,3995.6,0.4941]
[1733539940881,0.5213,3996.0,3995.6,0.66901]
[1733539941382,0.1749,3995.9,3995.6,0.66901]
[1733539941782,0.6962,3996.0,3995.6,0.66901]
[1733539942379,0.5213,3996.0,3995.6,0.4941]
[1733539942581,0.5213,3996.0,3995.9,0.1749]
[1733539942976,0.5213,3996.0,3995.8,0.1749]
[1733539943182,0.5213,3996.0,3995.6,0.4941]
[1733539943480,0.5213,3996.0,3995.7,0.17491]
[1733539943877,0.43728,3995.8,3994.9,3.2078]
[1733539944076,0.17493,3995.2,3995.1,0.5391]
[1733539946381,0.17493,3995.3,3995.1,0.5391]
[1733539946583,0.17493,3995.4,3995.1,0.5391]
[1733539947385,6.8784294,3995.9,3995.1,0.5391]
[1733539947386,0.17493,3995.3,3995.1,0.5391]
[1733539948680,0.17493,3995.2,3995.1,0.5391]
[1733539953689,0.17495,3994.8,3994.6,1.0097]
[1733539953883,0.17495,3994.8,3994.7,0.5056]
[1733539956284,0.17495,3994.8,3994.1,7.84446461]
[1733539956285,0.17497,3994.3,3994.2,6.3969424]
[1733539956482,0.17497,3994.3,3994.2,0.5219]
[1733539956681,0.17498,3994.2,3994.1,0.01107474]
[1733539957493,0.17498,3994.2,3994.1,0.52087474]
[1733539958189,0.17498,3994.2,3994.1,6.39591714]
[1733539959089,0.17498,3994.2,3994.1,0.52087474]
[1733539964196,0.17498,3994.2,3994.1,6.39591714]
[1733539964383,0.17498,3994.2,3994.1,0.52087474]
[1733539966085,0.17498,3994.2,3994.1,6.39591714]
[1733539966286,0.17498,3994.2,3994.1,0.52087474]
[1733539966484,0.17498,3994.2,3994.1,6.39591714]
[1733539968187,0.17498,3994.2,3994.1,0.52087474]
[1733539978490,0.17498,3994.2,3994.1,6.4056238]
[1733539980589,1.07699404,3994.2,3994.1,0.52087474]
[1733539982089,1.07699404,3994.2,3994.1,0.01107474]
[1733539982491,1.57959404,3994.2,3994.1,0.01107474]
[1733539987393,1.57959404,3994.2,3994.1,5.8958238]
[1733539987599,1.57959404,3994.2,3994.1,0.01107474]
[1733539989490,1.57959404,3994.2,3994.1,3.94536548]
[1733539990196,1.57959404,3994.2,3994.1,0.01107474]
[1733539990402,1.57959404,3994.2,3994.1,3.94522497]
[1733539990898,1.57959404,3994.2,3994.1,0.01107474]
[1733539991102,1.57959404,3994.2,3994.1,3.94519026]
[1733539991607,1.57959404,3994.2,3994.1,0.01107474]
[1733539992199,4.52764204,3994.2,3994.1,0.01107474]
[1733539992603,2.08949404,3994.2,3994.1,4.74e-06]
[1733539992799,2.14906906,3994.2,3993.7,4.44141552]
[1733539993001,7.23262094,3993.8,3993.7,0.5073]
[1733539993200,4.28481404,3993.8,3993.7,6.39204906]
[1733539993897,4.10981404,3993.8,3993.6,5.88474906]
[1733539994101,4.10981404,3993.8,3993.6,3.93358566]
[1733539994406,0.175,3993.6,3993.5,3.42709566]
[1733539994701,3.2078,3993.8,3993.5,5.88474906]
[1733539994905,0.175,3993.7,3993.6,0.514]
[1733539996019,1.07701404,3993.7,3993.6,0.514]
[1733539996508,1.07701404,3993.7,3993.6,8.37723259]
[1733539997405,1.07701404,3993.7,3993.6,0.514]
[1733539998304,1.07701404,3993.7,3993.6,8.37723259]
[1733539998508,1.07701404,3993.7,3993.6,0.514]
[1733539999107,0.175,3993.6,3993.5,5.89688534]
[1733539999609,0.175,3993.6,3993.5,5.8964436]
[1733540000403,0.17501,3993.5,3993.4,0.4959]
[1733540007914,0.17501,3993.5,3993.4,8.35583836]
[1733540009111,0.17501,3993.5,3993.4,8.3555364]
[1733540010014,0.17501,3993.5,3993.4,0.4959]
[1733540010908,0.17501,3993.5,3993.4,6.39111077]
[1733540011418,0.17501,3993.5,3993.4,0.4959]
[1733540011612,0.17501,3993.5,3993.4,8.3555364]
[1733540011809,0.17501,3993.5,3993.4,8.35591698]
[1733540012010,0.17501,3993.5,3993.4,0.4959]
[1733540013509,0.5093,3993.6,3993.3,8.38081698]
[1733540013510,0.17501,3993.4,3993.3,8.38081698]
[1733540013722,1.07702404,3993.4,3993.3,6.41659904]
[1733540013912,1.07702404,3993.4,3993.3,0.5208]
[1733540014717,4.28482404,3993.4,3993.3,0.5208]
[1733540015109,4.28482404,3993.4,3993.3,6.41659904]
[1733540015419,4.28482404,3993.4,3993.3,0.5208]
[1733540016815,0.17503,3993.1,3993.0,0.4892]
[1733540017119,0.17503,3993.1,3993.0,0.5149]
[1733540017315,1.07704404,3993.1,3993.0,0.5149]
[1733540022524,0.17503,3993.1,3993.0,0.5149]
[1733540022915,0.17503,3993.1,3993.0,8.37491698]
[1733540023112,0.17503,3993.1,3993.0,0.5149]
[1733540023320,0.17503,3993.1,3993.0,8.37491698]
[1733540024322,0.17503,3993.1,3993.0,0.5149]
[1733540026930,0.17503,3993.1,3993.0,8.37491698]
[1733540027629,0.17503,3993.1,3993.0,0.5149]
[1733540027930,0.17503,3993.1,3993.0,8.37742085]
[1733540028723,0.17503,3993.1,3993.0,8.37798603]
[1733540028922,0.17503,3993.1,3993.0,0.5149]
[1733540033629,0.17503,3993.1,3993.0,10.51485295]
[1733540034930,0.17503,3993.1,3993.0,0.5149]
[1733540035636,0.17503,3993.1,3993.0,10.33982295]
[1733540037138,0.17503,3993.1,3993.0,0.5149]
[1733540037436,0.17503,3993.1,3993.0,10.33982295]
[1733540038035,0.17503,3993.1,3993.0,0.5149]
[1733540045135,0.17503,3993.1,3993.0,8.38445456]
[1733540046037,0.17503,3993.1,3993.0,10.33982295]
[1733540046237,0.17503,3993.1,3993.0,0.5149]
[1733540047439,0.17503,3993.1,3993.0,10.354608]
[1733540048033,0.17503,3993.1,3993.0,0.5149]
[1733540048237,4.36357458,3994.0,3993.0,0.5149]
[1733540048444,3.3828,3993.8,3993.7,7.87172232]
[1733540048831,3.3828,3993.8,3993.6,0.5096]
[1733540049038,0.175,3993.7,3993.6,0.5096]
[1733540049739,3.38203093,3994.2,3993.6,0.5096]
[1733540049740,1.07699404,3994.2,3993.6,10.52425291]
[1733540049932,1.07699404,3994.2,3993.9,7.86980134]
[1733540049933,0.17499,3994.0,3993.9,7.86980134]
[1733540050137,0.75093649,3994.1,3993.7,10.01465291]
[1733540050138,0.5164,3994.1,3993.7,10.01465291]
[1733540050336,0.69138,3994.1,3993.9,7.86952235]
[1733540050645,0.17499,3994.0,3993.9,7.86952235]
[1733540051548,0.17499,3993.9,3993.8,8.35122235]
[1733540051738,0.17499,3993.9,3993.8,0.4817]
[1733540052551,0.17499,3993.9,3993.8,8.34809881]
[1733540053144,0.17499,3993.9,3993.8,0.4817]
[1733540058748,0.17499,3993.9,3993.8,0.65669]
[1733540058943,0.17499,3993.9,3993.8,0.4817]
[1733540059349,3.84658497,3994.2,3993.8,0.4817]
[1733540059659,3.84658497,3994.2,3993.9,0.17499]
[1733540059660,0.17499,3994.0,3993.9,0.17499]
[1733540060741,0.90201404,3994.2,3993.8,6.55631701]
[1733540060742,0.17499,3993.9,3993.8,6.55631701]
[1733540060947,0.17499,3993.9,3993.8,0.65669]
[1733540061551,0.17499,3993.9,3993.8,8.34142125]
[1733540062653,0.90201404,3994.2,3993.8,8.34142125]
[1733540062849,0.17499,3994.0,3993.9,0.17499]
[1733540063150,0.17499,3994.0,3993.8,8.34142125]
[1733540063151,0.17499,3993.9,3993.8,8.51641125]
[1733540063346,0.17499,3993.9,3993.8,8.34142125]
[1733540064746,0.17499,3993.9,3993.8,8.51642125]
[1733540066453,0.90201404,3994.2,3993.8,8.34142125]
[1733540066654,0.17498,3994.1,3994.0,5.89194419]
[1733540068346,0.17498,3994.1,3993.9,0.17499]
[1733540068547,0.17499,3994.0,3993.9,0.17499]
[1733540071551,0.65339,3994.0,3993.9,0.17499]
[1733540071757,0.4784,3994.0,3993.8,0.4817]
[1733540071957,0.17499,3993.9,3993.8,0.65669]
[1733540073656,3.59943026,3994.0,3993.9,0.17499]
[1733540074156,0.65339,3994.0,3993.9,0.17499]
[1733540075964,0.65339,3994.0,3993.9,6.0667102]
[1733540076170,0.65339,3994.0,3993.9,0.17499]
[1733540076552,0.65339,3994.0,3993.9,6.0667102]
[1733540076761,0.65339,3994.0,3993.9,0.17499]
[1733540077262,0.65339,3994.0,3993.9,6.0667102]
[1733540079864,0.4784,3994.0,3993.9,6.0667102]
[1733540080062,0.65339,3994.0,3993.9,6.0667102]
[1733540080366,0.65339,3994.0,3993.9,0.17499]
[1733540081665,0.90201404,3994.5,3993.9,8.75764098]
[1733540081872,0.68037,3994.3,3994.2,5.88714775]
[1733540082669,0.17498,3994.2,3994.1,7.84953033]
[1733540082969,0.17496,3994.6,3994.4,0.17496]
[1733540083163,0.5104,3994.9,3994.5,1.0042]
[1733540083467,0.68225,3995.0,3994.8,0.17495]
[1733540083765,0.68225,3995.0,3994.9,0.17495]
[1733540084167,0.5073,3995.0,3994.9,0.17495]
[1733540087966,0.90201404,3995.3,3995.2,0.17493]
[1733540087967,0.4945,3995.3,3995.2,0.17493]
[1733540088570,0.4945,3995.3,3995.2,0.5109]
[1733540088773,0.66943,3995.3,3995.2,0.5109]
[1733540089065,1.33927404,3996.0,3995.2,0.5109]
[1733540089066,3.2078,3996.3,3995.2,0.5109]
[1733540089265,0.6516,3996.1,3995.8,0.1749]
[1733540089471,0.6516,3996.1,3995.9,0.5109]
[1733540089673,0.4767,3996.1,3995.9,0.9999]
[1733540089870,0.6516,3996.1,3995.9,1.1748]
[1733540090072,0.4767,3996.1,3995.9,0.9999]
[1733540090274,0.4767,3996.1,3995.9,1.1748]
[1733540090574,0.4767,3996.1,3996.0,0.1749]
[1733540090974,3.42274026,3996.1,3996.0,0.1749]
[1733540091181,0.4767,3996.1,3996.0,0.1749]
[1733540092082,0.4767,3996.1,3995.9,0.9999]
[1733540092384,3.59764026,3996.1,3995.9,0.9999]
[1733540092584,0.6516,3996.1,3995.9,1.1748]
[1733540093883,0.4767,3996.1,3995.9,1.1748]
[1733540095987,0.65159,3996.1,3995.9,0.9999]
[1733540096181,0.4767,3996.1,3995.9,1.1748]
[1733540097785,0.1749,3996.0,3995.5,3.2078]
[1733540097991,0.4767,3996.1,3995.5,3.2078]
[1733540097992,0.17492,3995.6,3995.5,3.2078]
[1733540098687,0.17493,3995.4,3995.2,1.0217]
[1733540098890,0.17493,3995.3,3995.2,0.5163]
[1733540099092,0.17495,3994.9,3994.8,0.669]
[1733540099488,0.17495,3994.9,3994.5,3.2078]
[1733540099489,0.90201404,3995.0,3994.5,3.2078]
[1733540099790,0.90201404,3995.0,3994.1,5.8804695]
[1733540099791,0.17498,3994.2,3994.0,0.669]
[1733540099985,0.90201404,3994.6,3994.0,0.669]
[1733540100289,0.17498,3994.3,3994.0,0.669]
[1733540100488,0.17498,3994.3,3994.0,0.84399]
[1733540101296,0.17497,3994.4,3993.9,0.773245]
[1733540101591,0.17498,3994.1,3993.9,0.773245]
[1733540102200,0.4793,3994.5,3993.9,0.5232]
[1733540102495,0.17499,3994.1,3993.9,0.5232]
[1733540102691,0.17499,3994.0,3993.9,0.5232]
[1733540102885,3.2078,3994.7,3993.9,0.5232]
[1733540103087,0.17497,3994.5,3994.1,1.07699404]
[1733540103289,0.17497,3994.4,3994.1,0.90201404]
[1733540103485,0.17497,3994.4,3994.1,1.07699404]
[1733540103897,0.17497,3994.5,3994.1,1.07699404]
[1733540104192,0.5152,3994.8,3994.5,0.17496]
[1733540104396,0.69015,3994.8,3994.5,0.67996]
[1733540107395,0.17496,3994.7,3994.5,0.67996]
[1733540107698,0.69015,3994.8,3994.5,0.67996]
[1733540108092,0.17496,3994.6,3994.4,0.5154]
[1733540108488,0.17496,3994.6,3994.4,0.69037]
[1733540109102,0.5152,3994.8,3994.4,0.69037]
[1733540109103,0.69015,3994.8,3994.4,3.7232]
[1733540109296,1.37881404,3995.2,3994.4,4.62521404]
[1733540109500,0.17494,3995.0,3994.4,4.62521404]
[1733540109700,0.17494,3995.0,3994.7,0.17495]
[1733540109901,0.17494,3995.0,3994.8,0.4908]
[1733540110102,0.17495,3994.9,3994.8,0.992]
[1733540110297,0.4874,3995.2,3994.8,0.992]
[1733540110606,0.17495,3995.0,3994.8,0.992]
[1733540111498,0.17494,3995.0,3994.8,1.16695]
[1733540111807,0.4874,3995.2,3995.0,0.17494]
[1733540112994,0.66234,3995.2,3995.0,0.17494]
[1733540113395,0.17494,3995.1,3994.9,0.17495]
[1733540114401,0.17494,3995.1,3994.9,4.08770478]
[1733540115595,0.17494,3995.1,3994.9,3.91275478]
[1733540115801,0.17494,3995.1,3994.9,4.08770478]
[1733540116201,0.4874,3995.2,3994.9,3.91275478]
[1733540116405,0.90201404,3995.1,3994.8,3.709]
[1733540116594,0.17495,3994.9,3994.8,7.62175478]
[1733540116799,0.17495,3994.9,3994.8,3.709]
[1733540117102,0.17495,3994.9,3994.8,3.2078]
[1733540118311,0.4996,3995.0,3994.8,7.29550478]
[1733540118509,1.39001404,3995.1,3994.8,7.12055478]
[1733540118706,0.17494,3995.0,3994.8,7.12055478]
[1733540119603,1.39001404,3995.1,3994.8,7.12055478]
[1733540119804,0.17494,3995.0,3994.8,7.12055478]
[1733540120508,0.17495,3995.0,3994.8,7.12055478]
[1733540120709,0.17495,3994.9,3994.8,7.12055478]
[1733540121411,0.488,3995.1,3994.8,7.29550478]
[1733540121614,0.488,3995.1,3994.8,7.12055478]
[1733540121815,0.17494,3995.0,3994.8,7.29550478]
[1733540122011,0.488,3995.1,3994.8,7.29550478]
[1733540122312,0.66294,3995.1,3994.9,3.91275478]
[1733540122612,0.17494,3995.0,3994.9,3.91275478]
[1733540123712,0.66294,3995.1,3994.8,9.0882695]
[1733540123907,0.66294,3995.1,3994.9,4.09317041]
[1733540124308,0.488,3995.1,3994.9,3.91822041]
[1733540124815,0.17494,3995.0,3994.9,3.91822041]
[1733540125009,0.17494,3995.0,3994.9,4.09317041]
[1733540125403,0.488,3995.1,3994.8,9.0882695]
[1733540125608,0.17494,3995.0,3994.9,3.9190475]
[1733540126718,0.17494,3995.0,3994.8,9.2632195]
[1733540127416,0.17494,3995.0,3994.8,9.0882695]
[1733540127607,0.17494,3995.0,3994.8,9.2632195]
[1733540128217,0.17494,3995.0,3994.8,3.38275]
[1733540130217,0.17495,3994.9,3994.8,3.2078]
[1733540130512,1.39001404,3995.1,3994.4,2.17158842]
[1733540130712,0.17496,3994.7,3994.5,0.17496]
[1733540131112,1.39001404,3995.1,3994.4,2.17158842]
[1733540131319,0.17495,3994.9,3994.5,0.17496]
[1733540131519,1.39001404,3995.1,3994.4,2.17158842]
[1733540131712,0.17495,3994.8,3994.6,0.17496]
[1733540132211,0.17494,3995.0,3994.4,2.17158842]
[1733540132421,0.17494,3995.1,3994.7,0.90201404]
[1733540132612,0.17494,3995.1,3994.9,0.17494]
[1733540133017,0.17494,3995.1,3995.0,0.526]
[1733540133320,0.17494,3995.1,3995.0,1.0238]
[1733540134213,0.4874,3995.2,3995.1,0.17494]
[1733540134418,0.66233,3995.2,3995.1,0.68794]
[1733540135418,0.66233,3995.2,3995.1,0.513]
[1733540137914,1.38941404,3995.2,3994.5,1.0007]
[1733540138115,0.17495,3994.9,3994.7,0.17495]
[1733540139222,0.17495,3994.8,3994.6,8.01888406]
[1733540139813,0.5,3995.1,3994.6,7.84392406]
[1733540140013,0.17496,3994.7,3994.6,7.84392406]
[1733540143324,0.17496,3994.6,3994.5,3.9263144]
[1733540143528,0.17496,3994.6,3994.5,3.92732717]
[1733540143732,0.17496,3994.6,3994.4,6.79148565]
[1733540144028,0.17496,3994.6,3994.5,6.41327161]
[1733540144232,0.17496,3994.6,3994.5,6.89707161]
[1733540144426,0.17496,3994.7,3994.5,6.89707161]
[1733540144619,0.17496,3994.7,3994.6,0.4788]
[1733540145117,0.17496,3994.7,3994.6,4.40505697]
[1733540145319,0.17496,3994.7,3994.6,0.4788]
[1733540146324,0.17496,3994.7,3994.6,4.40463427]
[1733540146724,0.17496,3994.7,3994.6,0.4788]
[1733540149134,3.84646177,3994.9,3994.5,3.92583427]
[1733540149330,4.36526177,3994.6,3994.3,3.92583427]
[1733540149529,4.36526177,3994.6,3994.1,5.88947161]
[1733540149530,0.90201404,3994.4,3994.1,3.92583427]
[1733540149730,0.90201404,3994.4,3994.0,3.92583427]
[1733540149731,3.84646177,3994.4,3994.0,3.92583427]
[1733540149932,1.07699404,3994.1,3994.0,3.92583427]
[1733540151130,1.07699404,3994.1,3993.9,3.92583427]
[1733540151131,0.90201404,3994.1,3993.9,3.92583427]
[1733540151329,0.68289,3994.0,3993.9,7.84392406]
[1733540151534,0.17499,3993.9,3993.8,7.84392406]
[1733540152128,0.17499,3993.9,3993.8,8.32632406]
[1733540152726,0.17499,3994.0,3993.8,0.65739]
[1733540152932,0.17499,3994.0,3993.9,0.90201404]
[1733540153131,1.33941404,3994.7,3993.9,0.90201404]
[1733540153326,1.33941404,3994.7,3994.3,5.88493049]
[1733540153327,0.17496,3994.5,3994.3,5.88493049]
[1733540153531,0.17496,3994.5,3994.4,4.91981248]
[1733540154233,4.10981404,3994.6,3994.4,3.92318969]
[1733540154428,0.4869,3994.5,3994.3,3.92318969]
[1733540154634,0.90201404,3994.4,3994.1,3.92318969]
[1733540154838,0.17498,3994.2,3994.0,6.40343049]
[1733540155039,0.17498,3994.1,3994.0,0.5185]
[1733540156539,0.17498,3994.1,3994.0,8.36507399]
[1733540157143,0.17498,3994.1,3994.0,0.5185]
[1733540158440,0.17498,3994.1,3994.0,4.44013982]
[1733540159045,0.17498,3994.1,3994.0,0.5185]
[1733540160848,0.17498,3994.1,3994.0,6.4009333]
[1733540161240,3.2078,3994.8,3994.2,0.17497]
[1733540161441,0.17496,3994.7,3994.6,3.9204941]
[1733540162244,0.17496,3994.7,3994.6,0.5209]
[1733540162635,0.17496,3994.7,3994.6,4.4413941]
[1733540164449,0.17496,3994.7,3994.6,4.44229064]
[1733540165453,0.17496,3994.7,3994.6,0.5209]
[1733540165638,0.17496,3994.7,3994.6,4.44250435]
[1733540165948,0.17496,3994.7,3994.6,0.5209]
[1733540166451,0.17496,3994.7,3994.6,8.36747399]
[1733540167245,0.17496,3994.7,3994.6,6.4035207]
[1733540167447,0.17496,3994.7,3994.6,0.5209]
[1733540168144,0.17496,3994.7,3994.6,8.36747399]
[1733540169652,3.2078,3995.2,3994.6,0.5209]
[1733540169848,3.2078,3995.2,3994.8,8.01632579]
[1733540170055,3.38273,3995.2,3995.1,5.88101806]
[1733540170951,0.17494,3995.0,3994.9,7.84137579]
[1733540171543,0.17495,3994.9,3994.8,7.84137579]
[1733540171750,0.90201404,3995.2,3994.7,9.25038983]
[1733540171949,0.17495,3994.8,3994.7,9.25038983]
[1733540174253,0.17495,3994.8,3994.7,1.40901404]
[1733540174452,0.17495,3994.8,3994.7,1.91831404]
[1733540174751,0.17493,3995.2,3995.1,0.17494]
[1733540174951,0.17492,3995.5,3995.1,8.74634031]
[1733540175259,0.17493,3995.3,3995.2,8.36772627]
[1733540175450,0.17493,3995.3,3995.2,0.5234]
[1733540175651,0.17493,3995.3,3995.2,8.36772627]
[1733540176858,0.17493,3995.3,3995.2,0.5234]
[1733540177463,0.17493,3995.3,3995.2,8.36190394]
[1733540177860,0.90201404,3995.8,3995.2,8.36190394]
[1733540178060,0.17493,3995.4,3995.3,9.01665676]
[1733540178261,0.17493,3995.4,3995.3,8.84172676]
[1733540178457,0.17493,3995.4,3995.3,12.22445676]
[1733540178757,0.90201404,3995.8,3995.3,12.22445676]
[1733540178758,0.17492,3995.5,3995.3,12.22445676]
[1733540178954,0.90201404,3995.8,3995.3,12.22445676]
[1733540179153,0.90201404,3995.8,3995.7,3.91754423]
[1733540179348,1.07692404,3995.8,3995.7,3.91754423]
[1733540180052,0.17491,3995.8,3995.7,3.91754423]
[1733540180262,0.17491,3995.8,3995.4,0.90201404]
[1733540180263,0.17491,3995.8,3995.6,6.05122634]
[1733540180453,0.17491,3995.8,3995.6,0.17491]
[1733540181650,0.5283,3995.9,3995.6,0.17491]
[1733540181953,0.17491,3995.7,3995.6,0.17491]
[1733540182160,0.17491,3995.7,3995.4,0.90201404]
[1733540182361,0.17492,3995.5,3995.4,1.07693404]
[1733540182664,0.17492,3995.6,3995.4,1.07693404]
[1733540183164,0.17492,3995.7,3995.5,0.17492]
[1733540183555,0.5283,3995.9,3995.4,0.90201404]
[1733540183752,0.17492,3995.6,3995.5,0.17492]
[1733540183957,0.17492,3995.6,3995.4,0.90201404]
[1733540183958,0.17492,3995.6,3995.4,1.07693404]
[1733540184360,0.5283,3995.9,3995.3,1.0033]
[1733540184567,0.17493,3995.4,3995.3,1.0033]
[1733540188664,0.5098,3995.7,3995.2,3.91628631]
[1733540188665,0.17493,3995.3,3995.2,3.91628631]
[1733540188862,0.17493,3995.2,3995.1,3.91628631]
[1733540189168,0.17494,3995.1,3995.0,3.91628631]
[1733540189359,0.17494,3995.0,3994.9,3.91628631]
[1733540189870,0.17495,3994.9,3994.8,3.91628631]
[1733540190370,0.4888,3995.1,3994.7,3.91628631]
[1733540190565,0.17495,3994.8,3994.7,3.91628631]
[1733540194067,0.4888,3995.1,3994.7,3.91628631]
[1733540194365,0.17493,3995.3,3995.0,0.17494]
[1733540194573,0.17492,3995.5,3995.2,0.17493]
[1733540194867,0.17492,3995.5,3995.3,0.5031]
[1733540195270,2.40191404,3995.8,3995.3,0.5031]
[1733540195470,0.17493,3995.4,3995.3,0.5031]
[1733540196861,2.40191404,3995.8,3995.3,4.41722302]
[1733540197072,0.17492,3995.6,3995.4,4.08904302]
[1733540197266,0.17491,3995.7,3995.5,3.91357293]
[1733540197471,0.17491,3995.7,3995.6,3.91336626]
[1733540198673,0.17492,3995.6,3995.5,5.87108305]
[1733540199064,0.17492,3995.6,3995.5,5.8704213]
[1733540200566,0.17492,3995.6,3995.3,8.50614073]
[1733540200767,0.17491,3995.7,3995.5,0.17492]
[1733540200970,1.55862404,3995.8,3995.6,6.04603152]
[1733540201174,1.55862404,3995.8,3995.7,5.87112152]
[1733540201476,0.65661,3995.8,3995.7,6.39012152]
[1733540201972,0.4817,3995.8,3995.7,6.56503152]
[1733540203077,0.5028,3996.2,3995.9,0.1749]
[1733540203268,0.686,3996.1,3996.0,0.5153]
[1733540205070,1.58801404,3996.1,3996.0,0.5153]
[1733540205977,0.17491,3995.8,3995.6,0.17492]
[1733540206167,0.90201404,3995.8,3995.7,0.17491]
[1733540207688,0.1749,3995.9,3995.7,0.17491]
[1733540208094,1.41311404,3996.1,3995.6,0.17491]
[1733540208289,0.17491,3995.8,3995.6,0.17491]
[1733540208485,0.17491,3995.9,3995.6,0.17491]
[1733540208790,0.17491,3995.9,3995.7,0.17491]
[1733540209687,1.41311404,3996.1,3995.4,1.184]
[1733540209888,0.1749,3996.0,3995.7,0.17491]
[1733540210096,0.1749,3996.0,3995.6,0.17492]
[1733540210284,0.1749,3996.0,3995.7,0.66291]
[1733540210688,0.1749,3996.0,3995.8,5.87081727]